bitfinex/quotes_ETHUSD_20250608
["timestamp","ask_amount","ask_price","bid_price","bid_amount"]
[1749417109784,9.2842786,2536.9,2536.8,19.78109862]
[1749417110323,9.28327574,2536.9,2536.8,19.78109862]
[1749417110477,8.9138673,2536.9,2536.8,19.78109862]
[1749417111626,9.28327739,2536.9,2536.8,19.78109862]
[1749417112126,9.28327629,2536.9,2536.8,19.78109862]
[1749417112423,8.9138673,2536.9,2536.8,19.78109862]
[1749417113401,9.28327716,2536.9,2536.8,19.78109862]
[1749417113808,8.9138673,2536.9,2536.8,19.78109862]
[1749417114013,8.9136824,2536.9,2536.8,19.78109862]
[1749417114353,9.28309312,2536.9,2536.8,19.78109862]
[1749417114489,8.9136824,2536.9,2536.8,19.78109862]
[1749417114928,9.28309715,2536.9,2536.8,19.78109862]
[1749417115421,9.28309525,2536.9,2536.8,23.74808661]
[1749417115599,8.9136824,2536.9,2536.8,23.74808661]
[1749417120225,9.28308987,2536.9,2536.8,23.74808661]
[1749417120390,8.9136824,2536.9,2536.8,23.74808661]
[1749417120889,9.28309212,2536.9,2536.8,23.74808661]
[1749417121115,8.9136824,2536.9,2536.8,23.74808661]
[1749417122392,9.2830905,2536.9,2536.8,23.74808661]
[1749417122593,8.9136824,2536.9,2536.8,23.74808661]
[1749417123003,9.28308452,2536.9,2536.8,23.74808661]
[1749417123224,9.28308216,2536.9,2536.8,23.74808661]
[1749417124050,8.9136824,2536.9,2536.8,23.74808661]
[1749417125247,9.2830749,2536.9,2536.8,23.74808661]
[1749417125448,9.28307717,2536.9,2536.8,23.74808661]
[1749417125747,8.9136824,2536.9,2536.8,23.74808661]
[1749417126066,9.28307849,2536.9,2536.8,23.74808661]
[1749417126212,9.28307827,2536.9,2536.8,23.74808661]
[1749417126550,8.9136824,2536.9,2536.8,23.74808661]
[1749417126753,9.28307788,2536.9,2536.8,23.74808661]
[1749417127458,8.9136824,2536.9,2536.8,19.78109862]
[1749417127757,9.28307856,2536.9,2536.8,19.78109862]
[1749417127945,8.9136824,2536.9,2536.8,19.78109862]
[1749417128256,9.28307888,2536.9,2536.8,19.78109862]
[1749417129050,9.28308089,2536.9,2536.8,19.78109862]
[1749417129232,8.9136824,2536.9,2536.8,19.78109862]
[1749417129613,9.28308474,2536.9,2536.8,19.78109862]
[1749417129944,9.28308362,2536.9,2536.8,19.78109862]
[1749417130152,9.28308403,2536.9,2536.8,19.78109862]
[1749417130957,8.9136824,2536.9,2536.8,19.78109862]
[1749417131260,9.28308736,2536.9,2536.8,19.78109862]
[1749417131463,9.2830896,2536.9,2536.8,19.78109862]
[1749417132269,9.28308859,2536.9,2536.8,19.78109862]
[1749417132469,8.9136824,2536.9,2536.8,19.78109862]
[1749417132642,9.28309032,2536.9,2536.8,19.78109862]
[1749417132960,9.28208828,2536.9,2536.8,19.78109862]
[1749417133125,8.9126824,2536.9,2536.8,19.78109862]
[1749417133567,9.28209118,2536.9,2536.8,19.78109862]
[1749417133767,9.28208946,2536.9,2536.8,19.78109862]
[1749417133952,9.28208861,2536.9,2536.8,19.78109862]
[1749417134147,8.9126824,2536.9,2536.8,19.78109862]
[1749417134454,9.28209157,2536.9,2536.8,19.78109862]
[1749417134655,8.9126824,2536.9,2536.8,19.78109862]
[1749417135038,9.28209263,2536.9,2536.8,19.78109862]
[1749417135535,9.28210084,2536.9,2536.8,19.78109862]
[1749417135740,9.2821036,2536.9,2536.8,19.78109862]
[1749417135935,9.28210376,2536.9,2536.8,19.78109862]
[1749417136167,9.2821023,2536.9,2536.8,19.78109862]
[1749417136339,9.28210242,2536.9,2536.8,19.78109862]
[1749417136543,9.28210522,2536.9,2536.8,19.78109862]
[1749417137460,8.9126824,2536.9,2536.8,19.78109862]
[1749417138336,9.28207982,2536.9,2536.8,19.78109862]
[1749417138950,9.28207533,2536.9,2536.8,19.78109862]
[1749417139271,8.9126824,2536.9,2536.8,19.78109862]
[1749417139771,9.28207505,2536.9,2536.8,19.78109862]
[1749417140765,9.28207289,2536.9,2536.8,19.78109862]
[1749417140957,9.28207469,2536.9,2536.8,19.78109862]
[1749417141129,9.28207252,2536.9,2536.8,19.78109862]
[1749417141332,9.28207313,2536.9,2536.8,19.78109862]
[1749417141866,8.9126824,2536.9,2536.8,19.78109862]
[1749417142041,9.28207426,2536.9,2536.8,19.78109862]
[1749417142233,9.28207328,2536.9,2536.8,19.78109862]
[1749417142438,9.28207321,2536.9,2536.8,19.78109862]
[1749417142662,8.9126824,2536.9,2536.8,19.78109862]
[1749417142862,9.28207221,2536.9,2536.8,19.78109862]
[1749417143169,9.28207564,2536.9,2536.8,19.78109862]
[1749417143976,8.9126824,2536.9,2536.8,19.78109862]
[1749417144176,9.28207409,2536.9,2536.8,19.78109862]
[1749417144383,8.9126824,2536.9,2536.8,19.78109862]
[1749417144675,9.28207189,2536.9,2536.8,19.78109862]
[1749417144975,9.28207237,2536.9,2536.8,19.78109862]
[1749417145680,9.28207212,2536.9,2536.8,19.78109862]
[1749417145891,9.28207105,2536.9,2536.8,19.78109862]
[1749417146087,8.9126824,2536.9,2536.8,19.78109862]
[1749417146584,9.28207441,2536.9,2536.8,19.78109862]
[1749417147082,8.9126824,2536.9,2536.8,19.78109862]
[1749417147585,9.28207239,2536.9,2536.8,19.78109862]
[1749417147884,9.28207402,2536.9,2536.8,19.78109862]
[1749417148084,9.2820717,2536.9,2536.8,19.78109862]
[1749417148749,9.28207513,2536.9,2536.8,19.78109862]
[1749417149081,8.9126824,2536.9,2536.8,19.78109862]
[1749417149462,9.28207721,2536.9,2536.8,19.78109862]
[1749417149608,9.28207721,2536.9,2536.7,16.0]
[1749417149609,12.05221526,2536.9,2536.7,16.0]
[1749417149810,2.49703873,2536.8,2536.7,16.0]
[1749417149975,2.49703873,2536.8,2536.7,3.94212953]
[1749417150309,8.84503873,2536.8,2536.7,3.94212953]
[1749417150510,8.84486273,2536.8,2536.7,3.94212953]
[1749417150805,8.47566317,2536.8,2536.7,3.94212953]
[1749417151012,8.84486353,2536.8,2536.7,3.94212953]
[1749417151305,8.47566317,2536.8,2536.7,3.94212953]
[1749417151604,7.66288207,2536.8,2536.7,3.94212953]
[1749417152211,7.66283618,2536.8,2536.7,3.94212953]
[1749417152384,7.2936824,2536.8,2536.7,3.94212953]
[1749417153116,7.66283752,2536.8,2536.7,3.94212953]
[1749417153609,7.66283037,2536.8,2536.7,3.94212953]
[1749417153777,7.2936824,2536.8,2536.7,3.94212953]
[1749417154915,7.66283072,2536.8,2536.7,3.94212953]
[1749417155717,7.2936824,2536.8,2536.7,3.94212953]
[1749417156012,7.66279896,2536.8,2536.7,3.94212953]
[1749417156211,7.2936824,2536.8,2536.7,3.94212953]
[1749417156377,7.662797,2536.8,2536.7,3.94212953]
[1749417156784,7.2936824,2536.8,2536.7,3.94212953]
[1749417156990,7.66279775,2536.8,2536.7,3.94212953]
[1749417157187,7.66279775,2536.8,2536.4,0.7592]
[1749417157188,7.2936824,2536.8,2536.4,0.7592]
[1749417157387,2.10121623,2536.7,2536.6,3.9421812]
[1749417157593,0.9456824,2536.7,2536.6,3.9421812]
[1749417161036,8.9116824,2536.7,2536.6,3.9421812]
[1749417170744,8.91091078,2536.7,2536.6,3.9421812]
[1749417174145,8.91099505,2536.7,2536.6,3.9421812]
[1749417176247,7.966,2536.7,2536.6,3.9421812]
[1749417176421,8.91114703,2536.7,2536.6,3.9421812]
[1749417180919,8.91168751,2536.7,2536.6,3.9421812]
[1749417192579,8.90968751,2536.7,2536.6,3.9421812]
[1749417193283,0.94568751,2536.7,2536.6,3.9421812]
[1749417193482,8.90968751,2536.7,2536.6,3.9421812]
[1749417196786,0.94568751,2536.7,2536.6,20.7626812]
[1749417197072,6.347,2536.7,2536.6,20.7626812]
[1749417206586,6.347,2536.7,2536.6,24.72966919]
[1749417225342,8.43801975,2536.7,2536.6,3.94228494]
[1749417225541,9.19220449,2536.7,2536.6,19.94228494]
[1749417225710,9.56165754,2536.7,2536.6,19.94228494]
[1749417225909,9.56164965,2536.7,2536.6,23.90927293]
[1749417226112,9.19220449,2536.7,2536.6,23.90927293]
[1749417226312,8.78555873,2536.7,2536.6,16.0]
[1749417226513,9.56165873,2536.7,2536.6,16.0]
[1749417227012,9.56165423,2536.7,2536.6,16.0]
[1749417227358,9.56165664,2536.7,2536.6,16.0]
[1749417227529,9.56164744,2536.7,2536.6,16.0]
[1749417227723,9.56164869,2536.7,2536.6,16.0]
[1749417228036,9.19220449,2536.7,2536.6,16.0]
[1749417228237,9.56165196,2536.7,2536.6,16.0]
[1749417228435,9.56126483,2536.7,2536.6,16.0]
[1749417228753,9.19220449,2536.7,2536.6,16.0]
[1749417229119,9.19220449,2536.7,2536.6,19.94228494]
[1749417229332,8.0685683,2536.7,2536.6,19.94228494]
[1749417229652,8.0685683,2536.7,2536.6,23.90927293]
[1749417229853,7.2924683,2536.7,2536.6,23.90927293]
[1749417234029,0.9454683,2536.7,2536.6,23.90927293]
[1749417234224,7.963,2536.7,2536.6,23.90927293]
[1749417234426,8.9072986,2536.7,2536.6,23.90927293]
[1749417239745,8.9072986,2536.7,2536.6,19.94228494]
[1749417240195,0.9442986,2536.7,2536.6,23.90927293]
[1749417240491,7.2902986,2536.7,2536.6,23.90927293]
[1749417243054,0.9442986,2536.7,2536.6,23.90927293]
[1749417243290,7.2902986,2536.7,2536.6,23.90927293]
[1749417245205,0.9442986,2536.7,2536.6,23.90927293]
[1749417245411,7.2902986,2536.7,2536.6,23.90927293]
[1749417248222,1.617,2536.9,2536.8,3.94197414]
[1749417248382,8.90775278,2536.9,2536.8,23.90896213]
[1749417250279,7.28975278,2536.9,2536.8,19.94197414]
[1749417255384,0.94475278,2536.9,2536.8,19.94197414]
[1749417255583,7.28975278,2536.9,2536.8,19.94197414]
[1749417260306,0.94475278,2536.9,2536.8,19.94197414]
[1749417275862,7.28875278,2536.9,2536.8,19.94197414]
[1749417279814,0.94475278,2536.9,2536.8,19.94197414]
[1749417281098,6.344,2537.0,2536.9,3.94181875]
[1749417281262,6.344,2537.0,2536.9,23.90880674]
[1749417281263,7.28954985,2537.0,2536.9,23.90880674]
[1749417292110,7.28952943,2537.0,2536.9,23.90880674]
[1749417294377,6.344,2537.0,2536.9,23.90880674]
[1749417294583,7.28961063,2537.0,2536.9,23.90880674]
[1749417295578,7.65897413,2537.0,2536.9,23.90880674]
[1749417295780,7.28961063,2537.0,2536.9,23.90880674]
[1749417298019,7.65901102,2537.0,2536.9,23.90880674]
[1749417298194,7.28961063,2537.0,2536.9,23.90880674]
[1749417298513,7.65906923,2537.0,2536.9,23.90880674]
[1749417298891,7.6590709,2537.0,2536.9,23.90880674]
[1749417299078,7.28961063,2537.0,2536.9,23.90880674]
[1749417299791,7.6590707,2537.0,2536.9,23.90880674]
[1749417300018,7.6590707,2537.0,2536.9,19.94181875]
[1749417300339,7.28961063,2537.0,2536.9,19.94181875]
[1749417300907,7.65919326,2537.0,2536.9,19.94181875]
[1749417301142,7.28961063,2537.0,2536.9,19.94181875]
[1749417301734,7.65919524,2537.0,2536.9,19.94181875]
[1749417301934,7.65919518,2537.0,2536.9,19.94181875]
[1749417302317,7.65919507,2537.0,2536.9,19.94181875]
[1749417302514,7.28961063,2537.0,2536.9,19.94181875]
[1749417302714,7.65919493,2537.0,2536.9,19.94181875]
[1749417302915,7.65919604,2537.0,2536.9,19.94181875]
[1749417303743,7.28961063,2537.0,2536.9,19.94181875]
[1749417305151,7.6591724,2537.0,2536.9,19.94181875]
[1749417305329,7.65917091,2537.0,2536.9,19.94181875]
[1749417305645,7.28961063,2537.0,2536.9,19.94181875]
[1749417306016,7.65916286,2537.0,2536.9,19.94181875]
[1749417306246,7.65916356,2537.0,2536.9,19.94181875]
[1749417306446,7.65916392,2537.0,2536.9,19.94181875]
[1749417307051,7.65916826,2537.0,2536.9,19.94181875]
[1749417307247,7.65916793,2537.0,2536.9,19.94181875]
[1749417307457,7.28961063,2537.0,2536.9,19.94181875]
[1749417307628,7.65916664,2537.0,2536.9,19.94181875]
[1749417307828,7.28961063,2537.0,2536.9,19.94181875]
[1749417308339,7.65916743,2537.0,2536.9,19.94181875]
[1749417309151,7.65916843,2537.0,2536.9,19.94181875]
[1749417309346,7.28961063,2537.0,2536.9,19.94181875]
[1749417310056,7.65916658,2537.0,2536.9,19.94181875]
[1749417310557,7.65915676,2537.0,2536.9,19.94181875]
[1749417310864,7.28961063,2537.0,2536.9,19.94181875]
[1749417311171,7.65916033,2537.0,2536.9,19.94181875]
[1749417311465,7.28961063,2537.0,2536.9,19.94181875]
[1749417311758,7.65915758,2537.0,2536.9,19.94181875]
[1749417312135,7.28961063,2537.0,2536.9,19.94181875]
[1749417312531,7.65913469,2537.0,2536.9,19.94181875]
[1749417312743,7.28961063,2537.0,2536.9,19.94181875]
[1749417313165,7.659151,2537.0,2536.9,19.94181875]
[1749417313761,7.65915198,2537.0,2536.9,19.94181875]
[1749417314129,7.28961063,2537.0,2536.9,19.94181875]
[1749417314762,7.65915144,2537.0,2536.9,19.94181875]
[1749417314983,7.28961063,2537.0,2536.9,19.94181875]
[1749417315951,7.65915573,2537.0,2536.9,19.94181875]
[1749417316156,7.28961063,2537.0,2536.9,19.94181875]
[1749417317155,7.65915347,2537.0,2536.9,19.94181875]
[1749417317656,8.47162392,2537.0,2536.9,19.94181875]
[1749417318772,8.84117594,2537.0,2536.9,19.94181875]
[1749417319173,8.84114735,2537.0,2536.9,19.94181875]
[1749417319371,8.47162392,2537.0,2536.9,19.94181875]
[1749417320069,8.84114631,2537.0,2536.9,19.94181875]
[1749417320895,8.8411243,2537.0,2536.9,19.94181875]
[1749417321191,8.47162392,2537.0,2536.9,19.94181875]
[1749417321585,8.8411249,2537.0,2536.9,19.94181875]
[1749417321790,8.84112602,2537.0,2536.9,19.94181875]
[1749417321991,8.47162392,2537.0,2536.9,19.94181875]
[1749417322191,8.84112596,2537.0,2536.9,19.94181875]
[1749417322354,8.47162392,2537.0,2536.9,19.94181875]
[1749417322773,7.28961063,2537.0,2536.9,19.94181875]
[1749417322998,8.84112097,2537.0,2536.9,19.94181875]
[1749417323200,7.65910803,2537.0,2536.9,19.94181875]
[1749417323504,8.84112202,2537.0,2536.9,19.94181875]
[1749417323714,8.84112202,2537.0,2536.3,11.045]
[1749417323715,9.07769016,2537.0,2536.3,5.4868]
[1749417323872,3.31563248,2536.9,2536.4,16.0]
[1749417324073,7.28861063,2536.8,2536.5,16.0]
[1749417324274,7.28861063,2536.8,2536.4,19.94247529]
[1749417324275,0.7937,2536.6,2536.4,3.94249]
[1749417324472,0.7937,2536.6,2536.3,4.7]
[1749417324473,8.90361063,2536.5,2536.3,4.7]
[1749417324676,1.73931063,2536.4,2535.7,3.96698799]
[1749417324880,7.28861063,2536.3,2536.0,3.94321314]
[1749417325102,0.94561063,2536.2,2536.1,16.0]
[1749417325306,0.7937,2536.1,2535.9,3.94329751]
[1749417325503,6.343,2536.0,2535.8,3.94344374]
[1749417325753,6.343,2536.0,2535.9,3.94337316]
[1749417325951,6.343,2536.0,2535.9,19.94337316]
[1749417325952,7.28727786,2536.0,2535.9,19.94337316]
[1749417326802,6.343,2536.0,2535.9,19.94337316]
[1749417327001,6.343,2536.0,2535.9,16.0]
[1749417327203,6.343,2536.0,2535.7,3.94368016]
[1749417327661,6.343,2536.0,2535.8,19.94344411]
[1749417327814,1.615,2535.9,2535.6,3.94383972]
[1749417328139,6.343,2535.8,2535.7,16.0]
[1749417328499,6.343,2535.8,2535.7,3.94368418]
[1749417328701,6.343,2535.8,2535.6,19.94378284]
[1749417329007,6.343,2535.8,2535.7,3.94368418]
[1749417332950,0.758,2536.0,2535.8,3.94338576]
[1749417333129,7.96,2535.8,2535.7,3.94368418]
[1749417338206,7.96,2535.8,2535.7,19.94368418]
[1749417341303,6.345,2536.0,2535.9,19.94337316]
[1749417341953,1.616,2536.1,2536.0,19.94321766]
[1749417342180,7.961,2536.1,2536.0,19.94321766]
[1749417342375,0.802,2536.4,2536.2,3.94281641]
[1749417342701,0.802,2536.4,2536.3,3.94275125]
[1749417342702,1.616,2536.4,2536.3,3.94275125]
[1749417342909,8.90208083,2536.4,2536.3,3.94275125]
[1749417343275,7.961,2536.4,2536.3,3.94275125]
[1749417343507,8.90227926,2536.4,2536.3,3.94275125]
[1749417344366,7.961,2536.4,2536.3,19.94275125]
[1749417350577,8.90389348,2536.4,2536.3,19.94275125]
[1749417354653,8.90518873,2536.4,2536.3,19.94275125]
[1749417357112,8.90518873,2536.4,2536.3,16.0]
[1749417359196,8.90518873,2536.4,2536.3,19.94275125]
[1749417359396,8.90518873,2536.4,2536.3,16.0]
[1749417370326,9.27473197,2536.4,2536.3,16.0]
[1749417370686,10.4549688,2536.4,2536.3,16.0]
[1749417370892,10.45496936,2536.4,2536.3,16.0]
[1749417371107,10.08542465,2536.4,2536.3,16.0]
[1749417371312,10.45496883,2536.4,2536.3,16.0]
[1749417371690,10.45496934,2536.4,2536.3,16.0]
[1749417371892,10.45497135,2536.4,2536.3,16.0]
[1749417372591,9.27473543,2536.4,2536.3,16.0]
[1749417372798,10.4642583,2536.4,2536.3,16.0]
[1749417372996,11.2624583,2536.4,2536.3,16.0]
[1749417373294,12.81464683,2536.4,2536.3,16.0]
[1749417373907,11.63205353,2536.4,2536.3,16.0]
[1749417374320,11.2624583,2536.4,2536.3,16.0]
[1749417374520,12.44511689,2536.4,2536.3,16.0]
[1749417375191,12.81470898,2536.4,2536.3,16.0]
[1749417375819,12.8147025,2536.4,2536.3,16.0]
[1749417375997,12.81470165,2536.4,2536.3,16.0]
[1749417376198,11.2624583,2536.4,2536.3,16.0]
[1749417376394,11.63204795,2536.4,2536.3,16.0]
[1749417376599,12.81466774,2536.4,2536.3,16.0]
[1749417376927,11.63204612,2536.4,2536.3,16.0]
[1749417377130,11.63203415,2536.4,2536.3,16.0]
[1749417377335,11.63203123,2536.4,2536.3,16.0]
[1749417377492,11.63203168,2536.4,2536.3,16.0]
[1749417377832,11.2624583,2536.4,2536.3,16.0]
[1749417378401,11.63203421,2536.4,2536.3,16.0]
[1749417378733,11.2624583,2536.4,2536.3,16.0]
[1749417378945,11.63201332,2536.4,2536.3,16.0]
[1749417379149,0.7759,2536.2,2535.7,0.8]
[1749417379442,8.46985858,2536.1,2535.6,16.0]
[1749417379642,0.94418873,2536.0,2535.6,19.94375196]
[1749417379848,8.06308873,2535.9,2535.6,19.94375196]
[1749417380044,2.55918873,2535.8,2535.6,19.94375196]
[1749417380207,7.28718873,2535.7,2535.6,19.94375196]
[1749417381017,7.28718873,2535.7,2535.5,3.94393495]
[1749417381218,6.343,2535.7,2535.6,19.94383972]
[1749417381451,7.28839949,2535.7,2535.6,19.94383972]
[1749417382850,6.343,2535.7,2535.6,19.94383972]
[1749417383254,6.343,2535.7,2535.6,25.40261316]
[1749417383551,6.343,2535.7,2535.6,26.0243103]
[1749417384930,6.343,2535.7,2535.6,20.56553686]
[1749417396367,6.343,2535.7,2535.6,19.94383972]
[1749417397270,1.95630173,2536.1,2535.6,16.0]
[1749417397570,8.90336652,2536.0,2535.9,19.94332599]
[1749417400192,8.90336652,2536.0,2535.9,16.0]
[1749417403253,0.7867,2535.9,2535.7,16.0]
[1749417403451,7.28836652,2535.8,2535.7,16.0]
[1749417403690,7.28836652,2535.8,2535.6,16.0]
[1749417403989,0.94436652,2535.7,2535.6,19.94383972]
[1749417404993,2.55936652,2535.7,2535.6,16.0]
[1749417405231,6.00201508,2535.7,2535.2,3.94446197]
[1749417405345,7.28836652,2535.6,2535.5,16.0]
[1749417405549,8.52296803,2535.6,2535.4,16.0]
[1749417405749,0.94436652,2535.5,2535.4,16.0]
[1749417407203,0.94436652,2535.5,2535.3,16.0]
[1749417407498,7.28836652,2535.4,2535.3,19.94430639]
[1749417408476,7.28836652,2535.4,2535.1,16.39929]
[1749417408680,0.94436652,2535.3,2535.1,0.39929]
[1749417408895,6.344,2535.2,2535.1,3.94446737]
[1749417410301,6.344,2535.2,2535.1,3.94461756]
[1749417413705,7.28892219,2535.2,2535.0,3.94469767]
[1749417413863,6.344,2535.2,2535.0,3.94469767]
[1749417414900,6.344,2535.2,2534.9,4.33569591]
[1749417414901,6.344,2535.2,2534.9,4.33561496]
[1749417415101,6.344,2535.2,2535.0,3.94473401]
[1749417415602,6.344,2535.2,2534.9,3.94485457]
[1749417415802,6.344,2535.2,2534.8,19.94504687]
[1749417416105,6.344,2535.2,2534.9,3.94483842]
[1749417416511,6.344,2535.2,2535.0,3.94475065]
[1749417416890,6.344,2535.2,2535.1,3.94461756]
[1749417417217,7.28823725,2535.2,2535.1,3.94461756]
[1749417418915,7.28823725,2535.2,2535.1,19.94461756]
[1749417422183,0.94423725,2535.2,2535.1,19.94461756]
[1749417422408,7.28923725,2535.2,2535.1,19.94461756]
[1749417425627,7.96,2535.2,2535.1,19.94461756]
[1749417427214,8.90397144,2535.2,2535.1,16.0]
[1749417428633,9.87547858,2535.2,2535.1,16.0]
[1749417432229,13.81994055,2535.2,2534.8,0.39433974]
[1749417432459,0.94397144,2535.1,2534.8,16.0]
[1749417432658,8.09787144,2535.0,2534.8,16.0]
[1749417432955,0.94397144,2534.9,2534.8,16.0]
[1749417433353,0.94397144,2534.9,2534.8,19.94508442]
[1749417437527,0.94397144,2534.9,2534.8,16.0]
[1749417441467,2.55897144,2534.9,2534.8,16.0]
[1749417448098,2.55897144,2534.9,2534.6,4.34088075]
[1749417448298,7.28997144,2534.8,2534.7,3.94520245]
[1749417449312,8.25173547,2534.8,2534.5,16.0]
[1749417449490,0.94397144,2534.7,2534.3,20.77172629]
[1749417449790,7.28997144,2534.6,2534.4,3.94570707]
[1749417449948,6.346,2534.5,2534.4,19.94570707]
[1749417450352,7.29141649,2534.5,2534.4,19.94570707]
[1749417450687,6.346,2534.5,2534.4,19.94570707]
[1749417451690,7.29123964,2534.5,2534.4,19.94570707]
[1749417455574,7.29123964,2534.5,2534.4,25.40448051]
[1749417456199,0.94523964,2534.5,2534.4,25.40448051]
[1749417456402,7.29123964,2534.5,2534.4,25.40448051]
[1749417464013,0.94523964,2534.5,2534.4,25.40448051]
[1749417464176,7.29123964,2534.5,2534.4,26.15488051]
[1749417464376,6.346,2534.5,2534.4,26.15488051]
[1749417466189,1.18070143,2534.9,2534.8,19.94508442]
[1749417466394,0.94563811,2534.9,2534.8,21.45877344]
[1749417466719,0.94563811,2534.9,2534.8,19.94508442]
[1749417472020,0.94563811,2534.9,2534.8,25.40385786]
[1749417474923,7.5282921,2535.0,2534.9,19.94492879]
[1749417475125,8.47412627,2535.0,2534.9,19.94492879]
[1749417476525,7.29183417,2535.0,2534.9,19.94492879]
[1749417476924,8.47412627,2535.0,2534.9,19.94492879]
[1749417477129,7.29183417,2535.0,2534.9,16.0]
[1749417477515,8.47412627,2535.0,2534.9,19.94492879]
[1749417477708,7.29183417,2535.0,2534.9,19.94492879]
[1749417480537,7.29183417,2535.0,2534.9,16.0]
[1749417480705,8.47412627,2535.0,2534.9,16.0]
[1749417481643,9.56112821,2535.0,2534.8,16.0]
[1749417481833,0.94583417,2534.9,2534.8,16.0]
[1749417483620,0.94583417,2534.9,2534.7,3.94512747]
[1749417483621,0.94583417,2534.9,2534.7,16.0]
[1749417483951,7.29183417,2534.8,2534.7,16.0]
[1749417484147,7.29183417,2534.8,2534.7,19.94524006]
[1749417493366,4.72464006,2534.7,2532.9,3.94798478]
[1749417493580,12.46489215,2534.8,2533.9,7.91975228]
[1749417493581,1.18269244,2534.1,2533.9,7.91975228]
[1749417493753,1.18269244,2534.2,2534.0,20.78204516]
[1749417494058,1.617,2534.3,2534.2,19.94601846]
[1749417494261,8.96139768,2534.3,2534.2,23.91936362]
[1749417495341,8.96139768,2534.3,2534.2,25.41069738]
[1749417496367,8.96239768,2534.3,2534.2,25.41069738]
[1749417496555,7.34539768,2534.3,2534.2,25.41069738]
[1749417497074,0.94639768,2534.3,2534.2,25.41069738]
[1749417497429,1.18269244,2534.7,2534.3,16.0]
[1749417497628,3.94457291,2535.2,2535.1,3.94461756]
[1749417497629,1.18269244,2535.2,2535.1,3.94461756]
[1749417497855,7.34689336,2535.2,2535.1,19.94461756]
[1749417498028,0.94489336,2535.2,2535.1,19.94461756]
[1749417498227,0.94489336,2535.2,2535.1,25.40929648]
[1749417498720,6.404,2535.4,2535.3,19.94430639]
[1749417501062,1.18269244,2535.9,2535.5,16.7677]
[1749417501248,8.05,2536.0,2535.9,3.94337316]
[1749417501565,0.94345396,2536.0,2535.8,9.40816853]
[1749417501868,0.94345396,2535.9,2535.8,26.17586853]
[1749417502055,6.401,2536.2,2536.0,3.94307363]
[1749417502252,0.94283157,2536.1,2536.0,19.94307363]
[1749417502454,6.401,2536.2,2536.0,19.94307363]
[1749417502654,1.648,2536.4,2536.1,16.0]
[1749417502844,7.34411735,2536.3,2536.0,3.94307363]
[1749417503028,0.94211735,2536.2,2536.0,3.94307363]
[1749417503359,6.401,2536.2,2536.0,3.94307363]
[1749417504977,6.401,2536.2,2536.1,3.94306218]
[1749417505130,6.399,2536.2,2536.1,5.46467892]
[1749417505330,6.399,2536.2,2536.1,25.4077411]
[1749417505755,6.399,2536.3,2536.2,16.0]
[1749417506069,6.399,2536.3,2536.2,19.94280666]
[1749417506658,1.648,2536.4,2536.3,19.94275125]
[1749417506878,8.046,2536.4,2536.3,19.94275125]
[1749417507581,20.99100045,2536.8,2536.7,3.94212953]
[1749417507582,17.049,2536.8,2536.7,3.94212953]
[1749417507889,17.049,2536.8,2536.6,19.94219126]
[1749417507890,23.447,2536.8,2536.6,19.94219126]
[1749417508177,6.398,2536.8,2536.6,16.0]
[1749417508633,6.398,2536.8,2536.6,19.94220923]
[1749417509070,6.398,2536.8,2536.6,16.0]
[1749417509657,6.398,2536.8,2536.6,19.94228445]
[1749417510661,5.67419417,2537.1,2536.7,3.94212953]
[1749417510662,0.7943,2537.1,2536.7,3.94212953]
[1749417510874,8.042,2537.0,2536.7,3.94212953]
[1749417511584,1.647,2537.0,2536.9,19.94181875]
[1749417511753,8.042,2537.0,2536.9,19.94181875]
[1749417511950,8.042,2537.0,2536.8,19.94189732]
[1749417512349,8.042,2537.0,2536.9,3.94181875]
[1749417513647,1.647,2537.0,2536.9,19.94181875]
[1749417513867,1.647,2537.0,2536.9,20.64270212]
[1749417521466,1.647,2537.0,2536.9,19.94181875]
[1749417527516,2.58728917,2537.0,2536.9,19.94181875]
[1749417528125,0.94028917,2537.0,2536.9,19.94181875]
[1749417528494,0.94028917,2537.0,2536.9,25.40649767]
[1749417529115,0.94028917,2537.0,2536.9,19.94181875]
[1749417534432,2.11389176,2537.0,2536.9,19.94181875]
[1749417535447,7.95889314,2537.2,2537.1,3.94150802]
[1749417535649,1.9454567,2537.2,2537.1,19.94150802]
[1749417535855,1.94545628,2537.2,2537.1,19.94150802]
[1749417536057,1.57689314,2537.2,2537.1,19.94150802]
[1749417536255,1.94545473,2537.2,2537.1,19.94150802]
[1749417536452,2.88920267,2537.2,2537.1,19.94150802]
[1749417536653,2.88961554,2537.2,2537.1,19.94150802]
[1749417536863,2.88960871,2537.2,2537.1,19.94150802]
[1749417537252,1.57689314,2537.2,2537.1,19.94150802]
[1749417537759,2.35726984,2537.3,2537.2,3.94135267]
[1749417538071,2.72622585,2537.3,2537.2,19.94135267]
[1749417538753,2.35726984,2537.3,2537.2,19.94135267]
[1749417538956,0.94464424,2537.3,2537.2,19.94135267]
[1749417539281,8.73326984,2537.4,2537.3,19.94119733]
[1749417539477,10.04716622,2537.4,2537.3,19.94119733]
[1749417540378,10.04716622,2537.4,2537.3,16.0]
[1749417540593,9.67809121,2537.4,2537.3,19.94119733]
[1749417540963,2.35726984,2537.4,2537.3,19.94119733]
[1749417541168,9.67645064,2537.4,2537.3,19.94119733]
[1749417541383,3.30245064,2537.4,2537.3,19.94119733]
[1749417541542,3.67171965,2537.4,2537.3,19.94119733]
[1749417542282,3.30245064,2537.4,2537.3,19.94119733]
[1749417542484,3.67173881,2537.4,2537.3,19.94119733]
[1749417542679,3.67173691,2537.4,2537.3,19.94119733]
[1749417542985,3.67173693,2537.4,2537.3,19.94119733]
[1749417543283,3.6717371,2537.4,2537.3,19.94119733]
[1749417543887,3.30245064,2537.4,2537.3,19.94119733]
[1749417544043,3.6717426,2537.4,2537.3,19.94119733]
[1749417544271,3.30245064,2537.4,2537.3,16.0]
[1749417544472,4.3848649,2537.4,2537.3,16.0]
[1749417544671,4.75415853,2537.4,2537.3,16.0]
[1749417544866,4.75415596,2537.4,2537.3,16.0]
[1749417545672,11.12614403,2537.4,2537.3,16.0]
[1749417545867,0.7733,2537.3,2536.6,22.7627604]
[1749417546087,1.18180482,2536.9,2536.8,3.94197414]
[1749417546409,2.12698562,2536.9,2536.8,3.94197414]
[1749417546880,2.49629614,2536.9,2536.8,3.94197414]
[1749417547080,2.12698562,2536.9,2536.8,3.94197414]
[1749417548711,0.9451808,2536.9,2536.8,3.94197414]
[1749417549077,1.7184808,2536.9,2536.8,3.94197414]
[1749417550914,2.64629655,2536.9,2536.1,3.94306218]
[1749417551089,8.49894408,2536.8,2536.7,3.94212953]